Cogmind - Beta 16 @@@ ROGUE MODE // 2026.01.07 @ 13:45:45 Player: PE-P51 Result: Destroyed by S-10 Pest with Light Assault Rifle Performance ------------- Evolutions (2) 1000 Regions Visited (8) 1600 Robots Destroyed (138) 690 Value Destroyed (3436) 3436 Prototype IDs (26) 520 Alien Tech Used (0) 0 Bonus (735) 735 TOTAL SCORE: 7981 Bonus ------- High Alert Combat Kills 116 Follower Combat Kills 319 Aligned with FarCom 300 Cogmind --------- Core Integrity 0/550 Matter 165/300 Energy 250/250 System Corruption 4% Temperature Cool (2) Movement Flying (50) Location -8/Storage Parts ------- > --- POWER (1) -------- Light Angular Momentum Engine > --- PROPULSION (4) --- Flying Fortress v7 > --- UTILITY (4) ------ Small Battery Trap Scanner Signal Interpreter > --- WEAPON (2) ------- EM Pulse Gun > --- INVENTORY (5) ---- Improved Flight Unit Improved Heat Sink Weight Redist. System Peak State ------------ > --- POWER ------------ Light Angular Momentum Engine > --- PROPULSION ------- Flying Fortress v7 > --- UTILITY ---------- Small Battery Trap Scanner Signal Interpreter > --- WEAPON ----------- EM Pulse Gun > --- INVENTORY -------- Improved Flight Unit Improved Heat Sink Weight Redist. System [Rating: 43] Favorites ----------- Power Ion Engine Engine Ion Engine Power Core Light Nuclear Core Propulsion Improved Treads Treads Improved Treads Leg Aluminum Leg Wheel Armored Huge Wheel Flight Unit Flying Fortress v7 Utility Improved Heat Sink Device Improved Heat Sink Storage Huge Storage Unit Processor Improved Targeting Computer Protection Light Armor Plating Weapon Advanced Beam Cannon Energy Gun Beam Rifle Energy Cannon Advanced Beam Cannon Ballistic Gun Light Assault Rifle Launcher Grenade Launcher Special Weapon Mining Laser Impact Weapon Maul Build | -11 -10 -10 -9 -9 -9 -8 -8 -8 ------- Run | Yrd Mat Min Mat Min Exi Min Mat Sto Slots Evolved 4 | . . . 2 . . . 2 . Power . | . . . . . . . . . Propulsion 2 | . . . 1 . . . 1 . Utility 2 | . . . 1 . . . 1 . Weapon . | . . . . . . . . . Parts Attached 65 | . 12 . 23 4 1 3 18 4 Power 8 | . . . 3 2 . 2 1 . Engine 6 | . . . 3 1 . 1 1 . Core 2 | . . . . 1 . 1 . . Reactor . | . . . . . . . . . Propulsion 18 | . 5 . 6 . . 1 6 . Treads 13 | . 5 . 4 . . 1 3 . Leg . | . . . . . . . . . Wheel 3 | . . . 1 . . . 2 . Hover . | . . . . . . . . . Flight 2 | . . . 1 . . . 1 . Utility 16 | . 2 . 5 1 . . 5 3 Device 9 | . 1 . 5 1 . . 1 1 Storage 3 | . 1 . . . . . 1 1 Processor 3 | . . . . . . . 2 1 Hackware . | . . . . . . . . . Protection 1 | . . . . . . . 1 . Artifact . | . . . . . . . . . Weapon 23 | . 5 . 9 1 1 . 6 1 Energy Gun 2 | . . . 1 . . . . 1 Energy Cannon 5 | . . . 4 . . . 1 . Ballistic Gun 8 | . 4 . 2 . . . 2 . Ballistic Cannon . | . . . . . . . . . Launcher 5 | . 1 . 1 1 . . 2 . Special Weapon 1 | . . . . . 1 . . . Impact Weapon 2 | . . . 1 . . . 1 . Slashing Weapon . | . . . . . . . . . Piercing Weapon . | . . . . . . . . . Special Melee Weapon . | . . . . . . . . . Unidentified Prototypes 3 | . . . 3 . . . . . Parts Lost 31 | . 2 . 8 1 . 1 19 . Power 5 | . . . 2 1 . . 2 . Propulsion 11 | . 1 . 3 . . 1 6 . Utility 5 | . . . 1 . . . 4 . Weapon 10 | . 1 . 2 . . . 7 . Highest Loss Streak 8 | . 1 . 3 1 . 1 8 . To Critical Strikes . | . . . . . . . . . Average Backups 22 | . 19 25 24 24 22 19 19 2 Power 3 | . 4 5 4 4 3 2 2 . Propulsion 7 | . 7 9 8 8 8 7 5 1 Utility 3 | . 3 4 3 3 3 3 3 1 Weapon 6 | . 4 6 8 8 7 6 6 . Tool/Special . | . . . . . . . . . Unused Backups 40 | . 16 . 11 . 2 . 7 4 Power 6 | . 1 . 2 . 1 . 2 . Propulsion 18 | . 9 . 5 . . . 2 2 Utility 8 | . 2 . 1 . . . 3 2 Weapon 8 | . 4 . 3 . 1 . . . Tool/Special . | . . . . . . . . . Average Slot Usage (%) 93 | . 98 100 96 87 88 99 91 24 Engine 10 | . 14 14 11 8 11 2 8 9 Treads 22 | . 12 28 27 11 11 32 31 . Leg 2 | . 15 . . . . . . . Wheel 2 | . . . 2 11 11 . . . Device 18 | . 13 14 21 22 22 22 16 1 Storage 11 | . 14 14 11 11 11 11 8 . Energy Cannon 12 | . . . 18 21 . 21 15 . Ballistic Gun 6 | . 23 14 1 . . . . . Launcher 2 | . 3 14 . . . . . . Peak Build Rating 43 | . 12 12 29 31 30 33 42 43 Average Rating 21 | . 8 12 22 29 28 27 33 38 On Entrance 21 | 6 6 12 12 29 29 30 28 38 Avg Prop Armor Cover (%) 10 | . . . 10 10 11 . . . Naked Turns . | . . . . . . . . . Heaviest Build 100 | 13 90 90 95 97 96 97 100 14 Greatest Support 87 | 20 46 46 69 28 28 63 87 50 Greatest Overweight (x) 30 | . 4 1 4 3 3 3 30 . Average Overweight (x) 1 | . 2 1 1 3 3 1 . . Largest Inventory Capacity 25 | . 25 25 25 25 25 25 25 5 Average Capacity 24 | . 24 25 25 25 25 25 24 5 Most Carried 25 | . 25 25 25 25 25 25 25 5 Average Carried 23 | . 19 24 24 25 24 23 23 2 Final Capacity 25 | 8 25 25 25 25 25 25 5 5 Final Carried 25 | 6 25 25 25 25 25 24 5 3 Class Distribution -------------------- 93% | Mutant 6% | Scavenger-Mutant Dominant Class ---------------- Mutant | -10/Materials Mutant | -10/Mines Mutant | -9/Materials Mutant | -9/Mines Mutant | -9/Exiles Scavenger-Mutant | -8/Mines Mutant | -8/Materials Mutant | -8/Storage Resources | -11 -10 -10 -9 -9 -9 -8 -8 -8 ----------- Run | Yrd Mat Min Mat Min Exi Min Mat Sto Matter Collected 1415 | 200 206 149 437 120 . 109 111 83 Remotely . | . . . . . . . . . Salvage Created 4459 | . 712 29 1740 641 . 161 1093 83 Parts 281 | . 57 9 99 47 . 9 57 3 Haulers Intercepted 7 | . 1 . 6 . . . . . Recyclers Shooed 8 | . 2 . 2 1 . . 3 . Parts Field Recycled . | . . . . . . . . . Retrieved Matter . | . . . . . . . . . Parts Self-Destructed . | . . . . . . . . . Prevented . | . . . . . . . . . Parts Restored . | . . . . . . . . . Kills | -11 -10 -10 -9 -9 -9 -8 -8 -8 ------- Run | Yrd Mat Min Mat Min Exi Min Mat Sto Combat Hostiles Destroyed 100 | . 19 3 31 22 . 6 19 . Guns 13 | . 9 . 2 . . . 2 . Cannons 49 | . . . 20 16 . 1 12 . AOE 34 | . 10 3 7 6 . 3 5 . Classes Destroyed 16 | . 7 1 4 . . . 4 . Worker 6 | . 1 . 1 1 . 1 2 . Builder 9 | . . . 4 . . . 5 . Tunneler 1 | . . 1 . . . . . . Hauler 7 | . 1 . 6 . . . . . Recycler 7 | . 2 . 3 1 . . 1 . Carrier 1 | . . . 1 . . . . . Mechanic 2 | . . . . . . . 2 . Operator 3 | . 2 . 1 . . . . . Watcher 1 | . 1 . . . . . . . Swarmer 37 | . 8 3 9 14 . 3 . . Grunt 46 | . 11 . 15 6 . 3 11 . Brawler 2 | . . . . . . . 2 . Duelist 2 | . . . . . . . 2 . Protector 1 | . . . 1 . . . . . Sentry 11 | . . . 7 2 . . 2 . Specialist 2 | . . . . . . . 2 . Best Kill Streak 11 | . 5 2 11 7 . 4 9 . Combat Bots Only 9 | . 4 2 9 7 . 3 5 . Max Kills in Single Turn 4 | . 2 2 3 4 . 2 3 . Gunslinging . | . . . . . . . . . Exploded 4 | . 2 2 2 4 . 1 3 . Melee . | . . . . . . . . . Uniques/NPCs Destroyed . | . . . . . . . . . Combat | -11 -10 -10 -9 -9 -9 -8 -8 -8 -------- Run | Yrd Mat Min Mat Min Exi Min Mat Sto Hostile Shots Fired 519 | . 78 9 118 83 . 31 195 5 Missed 152 | . 20 4 36 23 . 11 55 3 Hits 367 | . 58 5 82 60 . 20 140 2 Melee 11 | . . . . . . . 11 . Projectile 356 | . 58 5 82 60 . 20 129 2 Critical Strikes 14 | . 1 . 5 1 . 1 6 . Damage Taken 5646 | . 727 60 1223 662 . 297 2662 15 Core 1077 | . 144 . 193 124 . 66 541 9 Absorbed by Shields . | . . . . . . . . . Regen/Repaired (Parts) 421 | . . . 289 . . . 132 . Core Remaining (%) 48 | 100 . 42 . . . 4 . . Volleys Fired 271 | . 60 3 92 39 . 11 62 4 Largest 2 | . 2 1 2 2 . 2 2 1 Hottest 136 | . 40 30 136 136 . 136 136 40 Shots Fired 483 | . 102 3 169 75 . 17 113 4 Gun 160 | . 90 . 42 . . . 24 4 Cannon 282 | . . . 114 72 . 12 84 . Launcher 40 | . 12 3 13 3 . 5 4 . Special 1 | . . . . . . . 1 . Kinetic 140 | . 90 . 26 . . . 24 . Thermal 299 | . . . 130 72 . 12 85 . Explosive 40 | . 12 3 13 3 . 5 4 . Electromagnetic 4 | . . . . . . . . 4 Robot Hit Streak 31 | . 13 2 12 9 . 20 31 4 Robot Miss Streak 4 | . 3 1 3 4 . 1 4 . Penetration Max . | . . . . . . . . . Secondary Targets 2 | . 1 . 1 . . . . . Max Gunslinging Chain 1 | . 1 . 1 . . . . . Shots Hit Robots 317 | . 71 2 103 42 . 12 83 4 Core Hits 199 | . 47 4 54 26 . 10 56 2 Critical Kills 4 | . 1 . 2 . . 1 . . Critical Parts Destroyed . | . . . . . . . . . Critical Strikes 7 | . 1 . 4 . . 1 . 1 Burn 2 | . . . 2 . . . . . Meltdown 3 | . . . 2 . . 1 . . Destroy 1 | . 1 . . . . . . . Corrupt 1 | . . . . . . . . 1 Melee Attacks 3 | . . . 1 2 . . . . Impact 3 | . . . 1 2 . . . . Slashing . | . . . . . . . . . Piercing . | . . . . . . . . . Sneak Attacks 1 | . . . . 1 . . . . Combat Hostiles . | . . . . . . . . . Follow-up Attacks . | . . . . . . . . . Damage Inflicted 8722 | . 1063 240 2681 1295 . 449 2939 55 Guns 1233 | . 523 . 339 . . . 316 55 Cannons 4099 | . . . 1520 921 . 247 1411 . Explosions 3197 | . 540 217 773 308 . 189 1170 . Melee 66 | . . . . 66 . . . . Ramming 127 | . . 23 49 . . 13 42 . Kinetic 991 | . 523 . 152 . . . 316 . Thermal 4269 | . . . 1707 921 . 247 1394 . Explosive 3197 | . 540 217 773 308 . 189 1170 . Electromagnetic 55 | . . . . . . . . 55 Impact 83 | . . . . 66 . . 17 . Slashing . | . . . . . . . . . Piercing . | . . . . . . . . . Highest Corruption 4 | . . . 1 1 1 1 4 4 Average Corruption 1 | . . . 1 1 1 1 4 4 Corruption Purged . | . . . . . . . . . Corruption Blocked . | . . . . . . . . . Effects 41 | . . . 11 15 . 5 5 5 Message Errors 10 | . . . 2 2 . 2 2 2 Matter Fused 10 | . . . 1 5 . 2 1 1 Heat Flow Errors 5 | . . . 3 1 . . . 1 Energy Discharges 5 | . . . 1 3 . . . 1 Parts Rejected 2 | . . . 1 . . . 1 . Parts Fused 2 | . . . . 2 . . . . Data Loss (minor) 5 | . . . 3 2 . . . . Data Loss (major) 1 | . . . . . . 1 . . Misfires 1 | . . . . . . . 1 . Overload Shots . | . . . . . . . . . Overflow Damage 171 | . 2 6 8 51 . 32 72 . Projectiles 21 | . . . . 10 . . 11 . Explosions 109 | . 2 6 8 . . 32 61 . Melee 41 | . . . . 41 . . . . Knockbacks . | . . . . . . . . . Impact . | . . . . . . . . . Kinetic . | . . . . . . . . . Secondary . | . . . . . . . . . Self-Inflicted Damage 418 | . 76 21 104 . . . 217 . Shots 14 | . 4 1 4 . . . 5 . Rammed 16 | . . 3 6 . . 3 4 . Targets Rammed 18 | . . 4 6 . . 3 5 . Kicked . | . . . . . . . . . Crushed 2 | . . 1 . . . . 1 . Highest Temperature 260 | . 17 . 260 231 . 46 33 229 Average Temperature 45 | . 9 . 48 42 . 24 11 75 Received Heat Transfer 2139 | . 318 . 459 174 . 144 1044 . Siege Activations . | . . . . . . . . . Martial Activations . | . . . . . . . . . Shielding Activations . | . . . . . . . . . Robots Disrupted . | . . . . . . . . . Combat Hostiles . | . . . . . . . . . Robots Corrupted . | . . . . . . . . . Combat Hostiles . | . . . . . . . . . Parts Fried 2 | . . . . 1 . . 1 . Impact Corruptions 2 | . . . . 1 . . 1 . Robots Melted 5 | . . . 3 . . 2 . . Combat Hostiles 4 | . . . 2 . . 2 . . Parts Melted 20 | . . . 9 1 . 4 6 . Heat Transferred 7724 | . . . 3342 1591 . 444 2347 . Parts Sabotaged . | . . . . . . . . . Parts Stolen . | . . . . . . . . . Parts Stripped . | . . . . . . . . . Power Chain Reactions . | . . . . . . . . . Alert | -11 -10 -10 -9 -9 -9 -8 -8 -8 ------- Run | Yrd Mat Min Mat Min Exi Min Mat Sto Maximum Alert Level 2 | . 1 . 2 2 . . 2 . Low Security (%) 62 | . 93 100 45 . . 100 79 100 Level 1 19 | . 6 . 15 67 . . 20 . Level 2 18 | . . . 38 32 . . . . Level 3 . | . . . . . . . . . Level 4 . | . . . . . . . . . Level 5 . | . . . . . . . . . High Security . | . . . . . . . . . Max Security . | . . . . . . . . . Peak Influence 676 | . 280 116 676 526 . 99 426 179 Initial 255 | . . 104 . 255 . . . 179 Average 199 | . 62 37 331 374 . 19 77 146 Influence Increases 3885 | . 639 209 1447 560 . 169 836 25 Destroy 0b10 Robot/C 2300 | . 380 120 860 440 . 120 380 . Destroy 0b10 Robot/NC 215 | . 35 5 100 10 . 5 50 10 Destroy Leader 504 | . 94 20 230 70 . 20 70 . Allied During Kill 93 | . . 22 71 . . . . . Successful Hack 25 | . . . 17 . . . 8 . Select Force Hacks 60 | . 60 . . . . . . . Disable Machine 135 | . 15 30 45 15 . . 30 . Anti-Garrison Action 150 | . . . . . . . 150 . Destroy Structure 208 | . 40 12 79 25 . 24 28 . Partial Spotted 30 | . . . 15 . . . . 15 Lose Combat Pursuer 165 | . 15 . 30 . . . 120 . Influence Decreases 3771 | . 371 476 793 928 287 169 410 337 Entered New Map 1099 | . . 164 1 400 287 . . 247 Time Decay 2322 | . 351 312 672 518 . 159 220 90 Lost Part 310 | . 20 . 80 10 . 10 190 . Lost Ally 40 | . . . 40 . . . . . Squads Dispatched 14 | . 6 . 4 . . . 4 . Investigation 5 | . 3 . 2 . . . . . Extermination . | . . . . . . . . . Reinforcement 5 | . 3 . 1 . . . 1 . Assault 3 | . . . 1 . . . 2 . Garrison 1 | . . . . . . . 1 . Intercept . | . . . . . . . . . Searches Triggered . | . . . . . . . . . Construction Impeded . | . . . . . . . . . Haulers Reinforced . | . . . . . . . . . Active Scanning Responses . | . . . . . . . . . Cargo Convoy Interrupts . | . . . . . . . . . Stealth | -11 -10 -10 -9 -9 -9 -8 -8 -8 --------- Run | Yrd Mat Min Mat Min Exi Min Mat Sto Distress Signals 3 | . 1 . 1 . . . 1 . Communications Jammed . | . . . . . . . . . Distress Signals . | . . . . . . . . . Times Spotted 160 | . 30 6 53 21 . 6 39 5 Peak Tracking Total 12 | . 4 3 8 6 . 3 12 4 Tactical Retreats 5 | . 1 . 1 . . . 3 . Traps | -11 -10 -10 -9 -9 -9 -8 -8 -8 ------- Run | Yrd Mat Min Mat Min Exi Min Mat Sto Traps Triggered 1 | . . . . . . . 1 . Indirectly . | . . . . . . . . . Trap Hack Attempts . | . . . . . . . . . Triggered . | . . . . . . . . . Disarmed . | . . . . . . . . . Reprogrammed . | . . . . . . . . . Reused . | . . . . . . . . . Traps Extracted . | . . . . . . . . . Installed . | . . . . . . . . . Triggered . | . . . . . . . . . Machines | -11 -10 -10 -9 -9 -9 -8 -8 -8 ---------- Run | Yrd Mat Min Mat Min Exi Min Mat Sto Machines Disabled 11 | . 1 2 3 2 . . 3 . Max in Single Turn 2 | . 1 2 1 1 . . 1 . Garrison Access 1 | . . . . . . . 1 . Machines Repaired . | . . . . . . . . . Machines Dismantled . | . . . . . . . . . Machines Sabotaged . | . . . . . . . . . Overloaded Fab Kills . | . . . . . . . . . Hacking | -11 -10 -10 -9 -9 -9 -8 -8 -8 --------- Run | Yrd Mat Min Mat Min Exi Min Mat Sto Machines Accessed 22 | . 4 . 12 . 1 . 4 1 Terminals 12 | . 2 . 8 . . . 2 . Fabricators . | . . . . . . . . . Repair Stations 3 | . . . 2 . . . 1 . Recycling Units 3 | . 2 . 1 . . . . . Scanalyzers 2 | . . . 1 . . . 1 . Garrison Access 1 | . . . . . . . . 1 Total Hacks 68 | . 11 . 40 . 1 . 13 3 Successful 40 | . 6 . 25 . 1 . 8 . Failed 28 | . 5 . 15 . . . 5 3 Catastrophic 1 | . . . 1 . . . . . Database Lockouts . | . . . . . . . . . Manual 34 | . 2 . 24 . 1 . 7 . Terminals 42 | . 7 . 27 . . . 8 . Fabricators . | . . . . . . . . . Repair Stations 10 | . . . 8 . . . 2 . Recycling Units 5 | . 4 . 1 . . . . . Scanalyzers 7 | . . . 4 . . . 3 . Garrison Access 3 | . . . . . . . . 3 Terminal Hacks 7 | . 3 . 3 . 1 . . . Robot Analysis 2 | . . . 2 . . . . . Branch Access Points 1 | . . . 1 . . . . . Patrol Status 1 | . 1 . . . . . . . Zone Layout 2 | . 2 . . . . . . . Proto ID Catalog 1 | . . . . . 1 . . . Fabricator Hacks . | . . . . . . . . . Repair Station Hacks 10 | . . . 8 . . . 2 . Scan Component 5 | . . . 4 . . . 1 . Repair 5 | . . . 4 . . . 1 . Recycling Unit Hacks 2 | . 1 . 1 . . . . . Retrieve Components 2 | . 1 . 1 . . . . . Scanalyzer 3 | . . . 1 . . . 2 . Insert Component 2 | . . . 1 . . . 1 . Analyze 1 | . . . . . . . 1 . Garrison Access Hacks . | . . . . . . . . . Unauthorized Hacks 18 | . 2 . 12 . . . 4 . Terminals 16 | . . . 12 . . . 4 . Botnet 8 | . . . 6 . . . 2 . Skim 8 | . . . 6 . . . 2 . Fabricators . | . . . . . . . . . Repair Stations . | . . . . . . . . . Recycling Units 2 | . 2 . . . . . . . Tunnel 2 | . 2 . . . . . . . Scanalyzers . | . . . . . . . . . Garrison Access . | . . . . . . . . . Data Cores Recovered . | . . . . . . . . . Used . | . . . . . . . . . Hacking Detections 18 | . 3 . 11 . . . 3 1 Full Trace Events 3 | . 1 . 2 . . . . . Feedback Events 1 | . . . 1 . . . . . Corruption 1 | . . . 1 . . . . . Feedback Blocked . | . . . . . . . . . Robot Schematics Acquired . | . . . . . . . . . Robots Built . | . . . . . . . . . Authchips . | . . . . . . . . . Time . | . . . . . . . . . Total Robot Build Rating . | . . . . . . . . . Part Schematics Acquired 1 | . . . . . . . 1 . Parts Built . | . . . . . . . . . Authchips . | . . . . . . . . . Time . | . . . . . . . . . Total Part Build Rating . | . . . . . . . . . Part Studies Acquired . | . . . . . . . . . Parts Repaired 5 | . . . 4 . . . 1 . Time 198 | . . . 166 . . . 32 . Parts Recycled . | . . . . . . . . . Recycled Matter . | . . . . . . . . . Retrieved Matter . | . . . . . . . . . Retrieved Components 9 | . . . 9 . . . . . Parts Scanalyzed 2 | . . . 1 . . . 1 . Part Schematics Acquired 1 | . . . . . . . 1 . Parts Damaged . | . . . . . . . . . Bothacking | -11 -10 -10 -9 -9 -9 -8 -8 -8 ------------ Run | Yrd Mat Min Mat Min Exi Min Mat Sto Used RIF Installer . | . . . . . . . . . Robots Hacked . | . . . . . . . . . Non-combat . | . . . . . . . . . Combat . | . . . . . . . . . Robot Hacks Applied . | . . . . . . . . . Relay Couplers Released 3 | . . . . . . . 3 . Machine Destruction 3 | . . . . . . . 3 . Fabnet Peak Effective % . | . . . . . . . . . Robots Rewired . | . . . . . . . . . Allies Hacked . | . . . . . . . . . Hacks Repelled . | . . . . . . . . . Allies | -11 -10 -10 -9 -9 -9 -8 -8 -8 -------- Run | Yrd Mat Min Mat Min Exi Min Mat Sto Total Allies 3 | . . 3 . . . . . . Largest Group 3 | . . 3 3 . . . . . Highest-Rated Group 40 | . . 40 40 . . . . . Highest-Rated Ally 16 | . . 16 16 . . . . . Total Orders . | . . . . . . . . . Ally Attacks 61 | . . 5 56 . . . . . Total Damage 773 | . . 51 722 . . . . . Kills 19 | . . 3 16 . . . . . Allies Corrupted . | . . . . . . . . . Allies Melted . | . . . . . . . . . Intel | -11 -10 -10 -9 -9 -9 -8 -8 -8 ------- Run | Yrd Mat Min Mat Min Exi Min Mat Sto Active Infowar (turns) 2454 | . . . 2422 . . . . 32 Traps 32 | . . . . . . . . 32 Seismic 2422 | . . . 2422 . . . . . Robot Analysis Total 2 | . . . 2 . . . . . Derelict Logs Recovered 3 | . . 1 . 2 . . . . Drone Launches . | . . . . . . . . . Drone Recoveries . | . . . . . . . . . Exploration | -11 -10 -10 -9 -9 -9 -8 -8 -8 ------------- Run | Yrd Mat Min Mat Min Exi Min Mat Sto Turns Passed 9921 | . 1692 1196 3321 1437 317 705 1054 199 Spaces Moved 4248 | 1 413 492 1319 896 216 276 383 252 Core 1 | . . . . . . . 1 . Treads 2168 | . 213 492 893 . . 274 296 . Legs 201 | 1 200 . . . . . . . Wheels 1541 | . . . 426 896 216 2 1 . Hover . | . . . . . . . . . Flight 337 | . . . . . . . 85 252 Fastest Speed 50 | 120 120 240 145 145 145 145 50 50 Average Speed 201 | 120 346 240 210 145 145 239 197 50 Slowest Speed 1550 | 120 400 240 480 145 145 240 1550 50 Overloaded Moves . | . . . . . . . . . Propulsion Burnouts . | . . . . . . . . . Robots Hopped 2 | . . . . . . . 2 . Potential Cave-ins . | . . . . . . . . . Cave-ins Triggered . | . . . . . . . . . Exploration Rate (%) 59 | 2 64 99 96 100 59 64 31 18 Regions Visited 8 Branch Regions 5 Pre-discovered Areas 7 | . 2 . 3 2 . . . . Known Exits Taken 2 | . . . 1 . . 1 . . Unknown Exits Taken 6 | 1 1 1 . 1 1 . 1 . Scrap Searched 5 | . . 3 . 1 . 1 . . Spaces Dug 9 | . 6 . 1 1 . . 1 . Terrain Destroyed 250 | . 45 12 91 27 . 39 36 . Melee 2 | . . . 1 1 . . . . Projectile 4 | . . . . . . . 4 . AOE 244 | . 45 12 90 26 . 39 32 . Terrain Rammed . | . . . . . . . . . Walls Destroyed . | . . . . . . . . . Machines Disabled . | . . . . . . . . . Actions | -11 -10 -10 -9 -9 -9 -8 -8 -8 --------- Run | Yrd Mat Min Mat Min Exi Min Mat Sto Total 5147 | . 597 500 1698 954 221 297 560 320 Wait 421 | . 67 . 212 10 . . 75 57 Move 4236 | . 412 491 1318 895 215 275 378 252 Hop 2 | . . . . . . . 2 . Pick Up 58 | . 30 1 20 . 1 . 5 1 Fast Attach 19 | . 3 . 4 1 . . 7 4 Attach 25 | . 1 . 11 . . 2 11 . Detach 4 | . 1 . 2 . . . 1 . Swap 41 | . 8 . 15 5 1 6 6 . Drop 49 | . 15 1 17 2 4 . 8 2 Fire 271 | . 60 3 92 39 . 11 62 4 Melee 3 | . . . 1 2 . . . . Ram 3 | . . . 3 . . . . . Kick . | . . . . . . . . . Crush 15 | . . 4 3 . . 3 5 . Escape Stasis . | . . . . . . . . . Rewire . | . . . . . . . . . Trap . | . . . . . . . . . Miscellaneous . | . . . . . . . . . Route ------- -11/Scrapyard -10/Materials (discovered 2 exits: *Mat / [*Min]) -10/Mines (discovered 3 exits: *Mat x2 / [*Sub]) -9/Materials (discovered 4 exits: *Mat x3 / *Min) -9/Mines (discovered 4 exits: *Mat x2 / *Exi / [*Zio]) -9/Exiles (discovered 2 exits: [*Min x2]) -8/Mines -8/Materials -8/Storage History --------- Turn | Location | Event 1 | -11/Scrapyard | Discovered new exit (range 0) 1 | -11/Scrapyard | Entered Materials 305 | -10/Materials | Build established: Mutant 991 | -10/Materials | Core integrity fell below 50% 1311 | -10/Materials | Discovered new exit (range 10) 1661 | -10/Materials | Discovered new exit (range 14) 1693 | -10/Materials | Entered Mines 1700 | -10/Mines | Received a Rocket Launcher from a helpful Derelict 1728 | -10/Mines | Met a Derelict bent on vengeance 1733 | -10/Mines | Discovered new exit (range 9) 1825 | -10/Mines | Learned Materials trap positions 1880 | -10/Mines | Discovered new exit (range 8) 1945 | -10/Mines | Assisted by bots powering up and referring to "LRC-V3" 2815 | -10/Mines | Discovered new exit (range 9) 2889 | -10/Mines | Entered Materials 2889 | -9/Materials | Accompanied by 3 allies 2889 | -9/Materials | Evolved 2 slots: Propulsion x1, Utility x1 2890 | -9/Materials | Loaded intel: 8 trap records 3295 | -9/Materials | Discovered new exit (range 15) 3837 | -9/Materials | Repaired Imp. Treads 4060 | -9/Materials | Discovered new exit (range 15) 4602 | -9/Materials | Discovered new exit (range 11) 4965 | -9/Materials | Destroyed 9 combat bots 4967 | -9/Materials | Lost 3 parts (2n1w) 5123 | -9/Materials | Learned 4 Recycling zone layouts 5169 | -9/Materials | Learned Storage non-interactive machine intel 5191 | -9/Materials | Discovered new exit (range 16) 5226 | -9/Materials | Learned location of Zion (-7) 5238 | -9/Materials | Identified exit to Materials 5238 | -9/Materials | Identified exit to Mines 5289 | -9/Materials | First assault squad dispatched 5296 | -9/Materials | Learned Storage trap positions 5566 | -9/Materials | Repaired Adv. Beam Cannon 5619 | -9/Materials | Repaired Adv. Beam Cannon 5652 | -9/Materials | Repaired Imp. Treads 6210 | -9/Materials | Entered Mines 6246 | -9/Mines | Core integrity fell below 50% 6299 | -9/Mines | Deemed a non-threat by the Exiles lab entrance 6299 | -9/Mines | Discovered new exit (range 5) 6499 | -9/Mines | Discovered exit to Materials (range 5) 6613 | -9/Mines | A Derelict revealed a hidden shortcut to a safe place 6743 | -9/Mines | Destroyed 7 combat bots 6763 | -9/Mines | Learned location of Recycling (-8) 6769 | -9/Mines | Discovered exit to Materials (range 7) 7647 | -9/Mines | Entered Exiles 7671 | -9/Exiles | Discovered new exit (range 15) 7685 | -9/Exiles | Met 8R-AWN 7710 | -9/Exiles | Met EX-HEX 7749 | -9/Exiles | Met EX-BIN 7766 | -9/Exiles | Aligned with FarCom system 7768 | -9/Exiles | Given EX-Vault access code 7810 | -9/Exiles | Opened EX-Vault 7819 | -9/Exiles | Found Flying Fortress v7 7849 | -9/Exiles | Warned to stay clear of 0b10 Research branches 7897 | -9/Exiles | Met EX-DEC 7948 | -9/Exiles | Discovered new exit (range 12) 7964 | -9/Exiles | Left Exiles lab with Flying Fortress v7 7964 | -9/Exiles | Entered Mines 7966 | -8/Mines | Core integrity fell below 20% 8271 | -8/Mines | Build established: Scavenger-Mutant 8654 | -8/Mines | Discovered exit to Materials (range 6) 8669 | -8/Mines | Entered Materials 8669 | -8/Materials | Evolved 2 slots: Propulsion x1, Utility x1 9046 | -8/Materials | Build established: Mutant 9421 | -8/Materials | Repaired Imp. Treads 9499 | -8/Materials | Garrison activated, responded to threat 9647 | -8/Materials | Lost 8 parts (1p4n1u2w) 9664 | -8/Materials | Core integrity fell below 50% 9672 | -8/Materials | Core integrity fell below 20% 9703 | -8/Materials | Lost 8 parts (1p2n1u4w) 9718 | -8/Materials | Discovered new exit (range 9) 9723 | -8/Materials | Entered Storage 9724 | -8/Storage | Loaded intel: 16 trap records 9725 | -8/Storage | Loaded intel: 18 non-interactive machine locations 9922 | -8/Storage | Destroyed by S-10 Pest with Light Assault Rifle Last Messages --------------- 09744_ Current location identified: Storage 09752_ K-01 Serf collects debris. 09767_ Dropped Arm. Huge Wheel. 09769_ R-06 Scavenger collects Arm. Huge Wheel. 09769_ Dropped Imp. Terrain Scanner. 09778_ HG&IPULD|EPD|YE4KGD5,G9BZ6Q0FS UK1CKY5MO 09836_ System corrupted: Heat flow error (+246). 09852_ YRU9P|YBJO%LQZ,1JFK=SL 09879_ Acquired EM Pulse Gun. 09885_ Acquired Signal Interpreter. 09890_ Acquired Trap Scanner. 09896_ A-02 Transporter destroyed. 09899_ Acquired 54 matter. 09900_ Acquired Weight Redist. System. 09904_ K-01 Serf destroyed. 09906_ R-06 Scavenger collects Med. Storage Unit. 09908_ Acquired Sml. Battery. 09909_ System corrupted: Matter fused (-10). 09911_ Acquired 29 matter. 09916_ R-06 Scavenger collects Wheel. Map ----- +----------------------------------------------------+ | ?????????????????????????????????????????????????? | | ?????????????????????????????????????????????????? | | ?????????????????????????????????????????????????? | | ?????????????????????????????????????????????????? | | ?????????????????????????????????????????????????? | | ?"""?"""?????????????????????????????????????????? | | ?"""?"""?????????????????????????????????????????? | | ?"""?"""?????????????????????????????????????????? | | ???????????????????????????????????""""??????????? | | ???????????????????????????????????"??""?????????? | | ???????????????????????????????????"??"""????????? | | ??????????????""""?######??????????"""??"????????? | | ?????????????""??"?# #???????????""??"????????? | | ????????????"""??"?# #????????????""""????????? | | ????????????"??"""?# #????????????????????????? | | ????????????"??"" # #????????????????????????? | | ????????????"""" / ####################?????? | | ???????????????????# * srr ???? | | ???????????????????# # ####??????????? | | ???????????????????# #ss ##+##+#####?????????? | | ???????????????????# #sg / #?????????? | | ???????????????????###### ####w! """ #????????= | | ????????????????????????# #""" """ ####### | | ????????????????????????# #"G """ + | | ????????????????????????# #""" "" """ ########### | | ????????????????????????#@#### "Y """ #?????????? | | ???????????????????"????#k#??# "" #?????????? | | ????????????????????????# #??# #?????????? | | ?????????Y??????????????# ########+############### | | ???????^?????????? | | ????????^?????????????########### | | ????????????????????????????????# | | ???^???????????????????"""??????################## | | ????????????????????o??"""???????????????????????? | | ????"""""??????????????"""???????????????????????? | | ???^"""""????????????????????????????????????????? | | ????"""""????????????????????????????????????????? | | ???????????????Y?????????????????????????????????? | | ?????????????????????????????????????????????????? | | ?????????????????????????????????????????????????? | | ???????????"""???????????????????????????????????? | | ""?????????"""???????????????????????????????????? | | ???????????"""???????????????????????????????????? | | ?????????????????????????????????????????????????? | | ?????????????????????????????????????????????????? | | ?????????????????????????????????????????????????? | | ?????????????????????????????????????????????????? | | ?????????????????????????????????????????????????? | | ??????????????^^?????????????????????????????????? | | ??????????????"""^???????????????????????????????? | +----------------------------------------------------+ Best States ------------- Heat Dissipation 59 Energy Generation 18 Energy Capacity 265 Matter Stores 300 Matter Capacity 300 Sight Range 16 Terrain Scan Density 10 Armor Coverage 150 Evasion (%) 60 Targeting Accuracy 8 Recoil Reduction 4 Item Schematics ----------------- Hacking Suite | -8/Materials | Scanalyzed Robot Schematics ------------------ None Fabricated ------------ Nothing Repaired ---------- Imp. Treads | 25% | -9/Materials Adv. Beam Cannon | 56% | -9/Materials Adv. Beam Cannon | 69% | -9/Materials Imp. Treads | 49% | -9/Materials Imp. Treads | 14% | -8/Materials Studied --------- None Alien Tech Used ----------------- None Achievements -------------- None Challenges ------------ None Game ------ Seed ChargeDefenseBlade Manual? 0 Play Time 00:34:02 Cumulative 274.3 hours Start 2026.01.07 @ 13:11:02 End 2026.01.07 @ 13:45:45 Sessions 1 Manual Loads 0 Difficulty Rogue Special Mode None Game No. 353 Rogue 352 Adventurer 1 Explorer 0 Win Type - Total 2 Types 1/0/0/1/0/0/0/0/0/0 Lore% 74 Gallery% 67 Achievement% 56 Wizard Run 0 Options --------- Layout 0 ASCII 0 Keyboard 0 Movement Numpad Keybinds 0 Fullscreen 2 Font 24/Smallcaps Map View 76x50 Zoom Use 0% Tactical HUD 1 Map Filters NONE Filters NONE Steam 1 RUN: 85448f86-71c9-4eb0-bf07-b039b73318ee